[Event "Late-Titled-Tuesday-Blitz-January-23-2024"]
[Site "Chess.com"]
[Date "2024.01.23"]
[Round "4"]
[White "Defenstrator"]
[Black "jcmesafischer"]
[Result "0-1"]
[WhiteElo "2496"]
[BlackElo "2357"]
[TimeControl "180+1"]
[EndTime "14:38:40 PST"]
[Termination "jcmesafischer won by resignation"]

1. e4 {[%clk 0:03:00.4]} 1... c5 {[%clk 0:02:48.1]} 2. Ne2 {[%clk 0:02:58.1]}
2... d6 {[%clk 0:02:47.4]} 3. d4 {[%clk 0:02:58]} 3... cxd4 {[%clk 0:02:48.3]}
4. Nxd4 {[%clk 0:02:54.4]} 4... Nf6 {[%clk 0:02:48.4]} 5. Nc3 {[%clk 0:02:50]}
5... a6 {[%clk 0:02:48.1]} 6. Be3 {[%clk 0:02:43.1]} 6... e5 {[%clk 0:02:27.5]}
7. Nb3 {[%clk 0:02:41.6]} 7... Be7 {[%clk 0:02:27.6]} 8. f3 {[%clk 0:02:40.7]}
8... Be6 {[%clk 0:02:27.7]} 9. Qd2 {[%clk 0:02:40.3]} 9... h5 {[%clk 0:02:27.2]}
10. Be2 {[%clk 0:02:28.3]} 10... Nbd7 {[%clk 0:02:26]} 11. O-O {[%clk
0:02:28.5]} 11... Rc8 {[%clk 0:02:21.5]} 12. Nd5 {[%clk 0:02:25.7]} 12... Bxd5
{[%clk 0:02:19.7]} 13. exd5 {[%clk 0:02:26]} 13... Nb6 {[%clk 0:02:20.3]} 14.
Bg5 {[%clk 0:02:04.9]} 14... Nbxd5 {[%clk 0:02:02.1]} 15. Rad1 {[%clk
0:01:52.8]} 15... O-O {[%clk 0:01:21.3]} 16. c4 {[%clk 0:01:51]} 16... Nb6
{[%clk 0:01:20.7]} 17. Na5 {[%clk 0:01:34.5]} 17... Qc7 {[%clk 0:00:42]} 18.
Bxf6 {[%clk 0:01:24]} 18... Bxf6 {[%clk 0:00:42.9]} 19. Qxd6 {[%clk 0:01:22.8]}
19... Na4 {[%clk 0:00:42.3]} 20. Qxc7 {[%clk 0:01:09]} 20... Rxc7 {[%clk
0:00:43.2]} 21. b3 {[%clk 0:00:59.5]} 21... Nc3 {[%clk 0:00:42.2]} 22. Rd2
{[%clk 0:00:59.7]} 22... Nxe2+ {[%clk 0:00:42.7]} 23. Rxe2 {[%clk 0:01:00.1]}
23... b6 {[%clk 0:00:43.6]} 24. Rd1 {[%clk 0:00:50.1]} 24... bxa5 {[%clk
0:00:42.9]} 25. Rd6 {[%clk 0:00:50]} 25... a4 {[%clk 0:00:38]} 26. Rxa6 {[%clk
0:00:49.1]} 26... axb3 {[%clk 0:00:38.5]} 27. axb3 {[%clk 0:00:50]} 27... Rb8
{[%clk 0:00:38.3]} 28. Re3 {[%clk 0:00:47.9]} 28... Rcb7 {[%clk 0:00:32.7]} 29.
Ra3 {[%clk 0:00:37]} 29... Be7 {[%clk 0:00:30.8]} 30. Ra5 {[%clk 0:00:34.5]}
30... f6 {[%clk 0:00:18.4]} 31. f4 {[%clk 0:00:30.9]} 31... Bd8 {[%clk
0:00:14.6]} 32. Rd5 {[%clk 0:00:23.6]} 32... Bb6 {[%clk 0:00:09.5]} 33. c5
{[%clk 0:00:23.7]} 33... Bc7 {[%clk 0:00:10.1]} 34. fxe5 {[%clk 0:00:17.4]}
34... Bxe5 {[%clk 0:00:11]} 35. c6 {[%clk 0:00:11.3]} 35... Rxb3 {[%clk
0:00:08.1]} 36. Rxb3 {[%clk 0:00:06.1]} 36... Rxb3 {[%clk 0:00:09]} 37. c7
{[%clk 0:00:03.7]} 37... Bxc7 {[%clk 0:00:06.6]} 38. Rxh5 {[%clk 0:00:04.4]}
38... Rb2 {[%clk 0:00:03.6]} 39. Kf1 {[%clk 0:00:03.5]} 39... Bb6 {[%clk
0:00:03.5]} 40. Rf5 {[%clk 0:00:03]} 40... Kf7 {[%clk 0:00:03.2]} 41. h4 {[%clk
0:00:03.8]} 41... Bd4 {[%clk 0:00:02.7]} 42. h5 {[%clk 0:00:03.6]} 42... Rc2
{[%clk 0:00:01.8]} 43. Rf4 {[%clk 0:00:03.4]} 43... Be5 {[%clk 0:00:01.6]} 44.
Rf3 {[%clk 0:00:03.3]} 44... Rc8 {[%clk 0:00:02.3]} 45. g4 {[%clk 0:00:03.3]}
45... Rc4 {[%clk 0:00:02.8]} 46. g5 {[%clk 0:00:03]} 46... Rf4 {[%clk
0:00:03.4]} 47. gxf6 {[%clk 0:00:01.2]} 47... Rxf3+ {[%clk 0:00:03.4]} 48. Kg2
{[%clk 0:00:02.1]} 48... gxf6 {[%clk 0:00:03.8]} 49. Kxf3 {[%clk 0:00:03]} 49...
Kg7 {[%clk 0:00:04.4]} 50. Kg4 {[%clk 0:00:03]} 50... Kh6 {[%clk 0:00:05.3]} 0-1

[Event "Late-Titled-Tuesday-Blitz-January-23-2024"]
[Site "Chess.com"]
[Date "2024.01.23"]
[Round "4"]
[White "js20000"]
[Black "GHANDEEVAM2003"]
[Result "1/2-1/2"]
[WhiteElo "2871"]
[BlackElo "3055"]
[TimeControl "180+1"]
[EndTime "14:38:43 PST"]
[Termination "Game drawn by repetition"]

1. d4 {[%clk 0:03:00.9]} 1... e6 {[%clk 0:02:58]} 2. e4 {[%clk 0:02:57.9]} 2...
b6 {[%clk 0:02:57.5]} 3. Nf3 {[%clk 0:02:54.7]} 3... Bb7 {[%clk 0:02:57.9]} 4.
Bd3 {[%clk 0:02:55]} 4... Nf6 {[%clk 0:02:57.5]} 5. Qe2 {[%clk 0:02:50.9]} 5...
d5 {[%clk 0:02:57.2]} 6. e5 {[%clk 0:02:45.3]} 6... Ne4 {[%clk 0:02:57.3]} 7.
Nbd2 {[%clk 0:02:44.4]} 7... Nxd2 {[%clk 0:02:54.9]} 8. Bxd2 {[%clk 0:02:45.3]}
8... c5 {[%clk 0:02:55.3]} 9. c3 {[%clk 0:02:45.6]} 9... Qc8 {[%clk 0:02:51]}
10. Bb5+ {[%clk 0:02:36]} 10... Bc6 {[%clk 0:02:50.7]} 11. Bd3 {[%clk
0:02:30.4]} 11... Bb7 {[%clk 0:02:50.7]} 12. Bb5+ {[%clk 0:02:27.1]} 12... Nc6
{[%clk 0:02:50.7]} 13. O-O {[%clk 0:02:27.3]} 13... a6 {[%clk 0:02:48.9]} 14.
Bd3 {[%clk 0:02:27.1]} 14... Be7 {[%clk 0:02:48]} 15. h4 {[%clk 0:02:24.5]}
15... b5 {[%clk 0:02:38]} 16. h5 {[%clk 0:02:21.9]} 16... h6 {[%clk 0:02:38.3]}
17. dxc5 {[%clk 0:02:16.1]} 17... Bxc5 {[%clk 0:02:39.2]} 18. b4 {[%clk
0:02:16.1]} 18... Be7 {[%clk 0:02:38.2]} 19. a4 {[%clk 0:02:14.4]} 19... bxa4
{[%clk 0:02:39.1]} 20. Rxa4 {[%clk 0:02:14.4]} 20... a5 {[%clk 0:02:39.6]} 21.
b5 {[%clk 0:02:12.1]} 21... Nb8 {[%clk 0:02:39.8]} 22. Rfa1 {[%clk 0:02:12.1]}
22... Bd8 {[%clk 0:02:39.3]} 23. Rg4 {[%clk 0:02:11.6]} 23... Kf8 {[%clk
0:02:36.9]} 24. c4 {[%clk 0:02:11.3]} 24... Nd7 {[%clk 0:02:35.4]} 25. cxd5
{[%clk 0:02:03.7]} 25... Bxd5 {[%clk 0:02:34.8]} 26. Rc1 {[%clk 0:02:04.2]}
26... Qb8 {[%clk 0:02:27.2]} 27. Be4 {[%clk 0:02:00.6]} 27... Qb7 {[%clk
0:02:20]} 28. Bxd5 {[%clk 0:01:59.4]} 28... Qxd5 {[%clk 0:02:20.9]} 29. Rd4
{[%clk 0:01:55.4]} 29... Qb7 {[%clk 0:02:20.9]} 30. Qd3 {[%clk 0:01:51.1]} 30...
Ke8 {[%clk 0:02:20.8]} 31. Rg4 {[%clk 0:01:43]} 31... Kf8 {[%clk 0:02:09.3]} 32.
Rd4 {[%clk 0:01:28.4]} 32... Ke8 {[%clk 0:02:08.6]} 33. Rg4 {[%clk 0:01:15.4]}
33... Bc7 {[%clk 0:02:02.7]} 34. Bf4 {[%clk 0:01:07.2]} 34... Rd8 {[%clk
0:02:00.5]} 35. Qc4 {[%clk 0:01:01.6]} 35... Bb6 {[%clk 0:01:56.9]} 36. Rxg7
{[%clk 0:01:01]} 36... Nc5 {[%clk 0:01:55]} 37. Be3 {[%clk 0:01:00.9]} 37... Rd5
{[%clk 0:01:52.5]} 38. Bxc5 {[%clk 0:00:51.7]} 38... Rxc5 {[%clk 0:01:51.4]} 39.
Qf4 {[%clk 0:00:51.7]} 39... Rxc1+ {[%clk 0:01:43.7]} 40. Qxc1 {[%clk
0:00:52.6]} 40... a4 {[%clk 0:01:39.3]} 41. Rg4 {[%clk 0:00:44.6]} 41... Qa8
{[%clk 0:01:25.4]} 42. Qc2 {[%clk 0:00:38.1]} 42... a3 {[%clk 0:01:17.7]} 43.
Ra4 {[%clk 0:00:37.5]} 43... Qd5 {[%clk 0:01:18.1]} 44. Qc8+ {[%clk 0:00:27]}
44... Ke7 {[%clk 0:01:17.1]} 45. Qxh8 {[%clk 0:00:26.7]} 45... Qd1+ {[%clk
0:01:17.1]} 46. Kh2 {[%clk 0:00:25]} 46... Qxa4 {[%clk 0:01:18]} 47. Qf6+ {[%clk
0:00:23.6]} 47... Ke8 {[%clk 0:01:17.6]} 48. Qh8+ {[%clk 0:00:23]} 48... Kd7
{[%clk 0:01:15.3]} 49. Qf8 {[%clk 0:00:22]} 49... a2 {[%clk 0:01:06]} 50. Qxf7+
{[%clk 0:00:22.1]} 50... Kd8 {[%clk 0:00:59.1]} 51. Qf8+ {[%clk 0:00:21.4]}
51... Kc7 {[%clk 0:00:59.7]} 52. Qd6+ {[%clk 0:00:21.6]} 52... Kb7 {[%clk
0:00:59]} 53. Qc6+ {[%clk 0:00:21.1]} 53... Ka7 {[%clk 0:00:58]} 54. Qd7+ {[%clk
0:00:21.5]} 54... Kb8 {[%clk 0:00:58.4]} 55. Qe8+ {[%clk 0:00:21.8]} 55... Kb7
{[%clk 0:00:57]} 56. Qc6+ {[%clk 0:00:22]} 56... Ka7 {[%clk 0:00:57.6]} 57. Qd7+
{[%clk 0:00:22.1]} 57... Kb8 {[%clk 0:00:57.9]} 58. Qe8+ {[%clk 0:00:20.4]}
58... Kc7 {[%clk 0:00:56.9]} 59. Qc6+ {[%clk 0:00:20.7]} 59... Kb8 {[%clk
0:00:52.5]} 60. Qxb6+ {[%clk 0:00:20.4]} 60... Ka8 {[%clk 0:00:52.7]} 61. Qc6+
{[%clk 0:00:20.5]} 61... Kb8 {[%clk 0:00:52.4]} 62. Qe8+ {[%clk 0:00:19.3]}
62... Kb7 {[%clk 0:00:51.7]} 63. Qc6+ {[%clk 0:00:19.2]} 63... Kb8 {[%clk
0:00:51.9]} 64. Qd6+ {[%clk 0:00:17.6]} 64... Kb7 {[%clk 0:00:51.2]} 65. Qc6+
{[%clk 0:00:07.8]} 65... Kb8 {[%clk 0:00:51.2]} 1/2-1/2

[Event "Late-Titled-Tuesday-Blitz-January-23-2024"]
[Site "Chess.com"]
[Date "2024.01.23"]
[Round "4"]
[White "Perecke"]
[Black "NikolaGry"]
[Result "0-1"]
[WhiteElo "2543"]
[BlackElo "2752"]
[TimeControl "180+1"]
[EndTime "14:38:44 PST"]
[Termination "NikolaGry won on time"]

1. e4 {[%clk 0:03:00.9]} 1... d5 {[%clk 0:02:59.6]} 2. exd5 {[%clk 0:03:01.2]}
2... Nf6 {[%clk 0:02:59.2]} 3. d4 {[%clk 0:03:00.5]} 3... Bg4 {[%clk 0:02:58.9]}
4. Bb5+ {[%clk 0:02:59.9]} 4... Nbd7 {[%clk 0:02:57.2]} 5. f3 {[%clk 0:02:58]}
5... Bf5 {[%clk 0:02:57.2]} 6. c4 {[%clk 0:02:58.1]} 6... a6 {[%clk 0:02:55.2]}
7. Ba4 {[%clk 0:02:58.5]} 7... b5 {[%clk 0:02:48.2]} 8. cxb5 {[%clk 0:02:59.4]}
8... axb5 {[%clk 0:02:46.5]} 9. Bxb5 {[%clk 0:02:57]} 9... Nxd5 {[%clk
0:02:46.6]} 10. Nc3 {[%clk 0:02:27.8]} 10... Nb4 {[%clk 0:02:41.2]} 11. Ne4
{[%clk 0:02:27.4]} 11... c6 {[%clk 0:02:32.8]} 12. Bc4 {[%clk 0:02:19.7]} 12...
e6 {[%clk 0:02:08.6]} 13. Ne2 {[%clk 0:02:17.8]} 13... Bxe4 {[%clk 0:01:35.7]}
14. fxe4 {[%clk 0:02:16.1]} 14... Qh4+ {[%clk 0:01:34.8]} 15. Ng3 {[%clk
0:02:14.7]} 15... Bd6 {[%clk 0:01:33.2]} 16. O-O {[%clk 0:02:13.6]} 16... Bxg3
{[%clk 0:01:29]} 17. hxg3 {[%clk 0:02:14.5]} 17... Qxe4 {[%clk 0:01:25.1]} 18.
Bf4 {[%clk 0:01:03.2]} 18... Nd5 {[%clk 0:01:05.3]} 19. Bd6 {[%clk 0:00:57.7]}
19... Qe3+ {[%clk 0:00:48.6]} 20. Rf2 {[%clk 0:00:52]} 20... N7f6 {[%clk
0:00:44.6]} 21. Qc1 {[%clk 0:00:20.9]} 21... Ng4 {[%clk 0:00:30.4]} 22. Qxe3
{[%clk 0:00:11.9]} 22... Ndxe3 {[%clk 0:00:28.4]} 23. Bb3 {[%clk 0:00:05.5]}
23... Nxf2 {[%clk 0:00:25.7]} 24. Kxf2 {[%clk 0:00:06.4]} 24... Nf5 {[%clk
0:00:23]} 25. Bc5 {[%clk 0:00:04.7]} 25... Kd7 {[%clk 0:00:22.2]} 26. g4 {[%clk
0:00:03.1]} 26... Nd6 {[%clk 0:00:20.3]} 27. Ke3 {[%clk 0:00:02.9]} 27... h6
{[%clk 0:00:19.3]} 28. Rf1 {[%clk 0:00:02.7]} 28... f6 {[%clk 0:00:19.2]} 29.
Kd3 {[%clk 0:00:02.6]} 29... Rhe8 {[%clk 0:00:19]} 30. Kc3 {[%clk 0:00:01.5]}
30... e5 {[%clk 0:00:16.7]} 31. d5 {[%clk 0:00:01.2]} 31... Ne4+ {[%clk
0:00:13.1]} 32. Kb4 {[%clk 0:00:01.2]} 32... Reb8+ {[%clk 0:00:12.3]} 33. Kc4
{[%clk 0:00:01.1]} 33... cxd5+ {[%clk 0:00:12.2]} 34. Kxd5 {[%clk 0:00:01.4]}
34... Nxc5 {[%clk 0:00:12.2]} 35. Kxc5 {[%clk 0:00:02.2]} 35... Ra5+ {[%clk
0:00:12.2]} 36. Kc4 {[%clk 0:00:02.5]} 36... Rc8+ {[%clk 0:00:11.7]} 37. Kb4
{[%clk 0:00:02.9]} 37... Raa8 {[%clk 0:00:11.6]} 38. a4 {[%clk 0:00:02.8]} 38...
Rab8+ {[%clk 0:00:10.2]} 39. Ka3 {[%clk 0:00:03.3]} 39... Ke7 {[%clk 0:00:10]}
40. Rf3 {[%clk 0:00:03.4]} 40... g6 {[%clk 0:00:08.8]} 41. Ba2 {[%clk
0:00:03.4]} 41... Rc5 {[%clk 0:00:06.1]} 42. b4 {[%clk 0:00:03.7]} 42... Rc7
{[%clk 0:00:05.2]} 43. a5 {[%clk 0:00:03.9]} 43... e4 {[%clk 0:00:04.9]} 44. Re3
{[%clk 0:00:04]} 44... f5 {[%clk 0:00:04.6]} 45. gxf5 {[%clk 0:00:04.6]} 45...
gxf5 {[%clk 0:00:04.8]} 46. Ka4 {[%clk 0:00:03.2]} 46... Rbc8 {[%clk 0:00:03.9]}
47. b5 {[%clk 0:00:03]} 47... Rc3 {[%clk 0:00:03.6]} 48. Rxc3 {[%clk 0:00:03.4]}
48... Rxc3 {[%clk 0:00:03]} 49. a6 {[%clk 0:00:04]} 49... Kd8 {[%clk 0:00:02.2]}
50. a7 {[%clk 0:00:03.4]} 50... Rc8 {[%clk 0:00:02.2]} 51. b6 {[%clk 0:00:03.3]}
51... e3 {[%clk 0:00:02.4]} 0-1

[Event "Late-Titled-Tuesday-Blitz-January-23-2024"]
[Site "Chess.com"]
[Date "2024.01.23"]
[Round "4"]
[White "vladislavkovalev"]
[Black "mishanick"]
[Result "0-1"]
[WhiteElo "2871"]
[BlackElo "3069"]
[TimeControl "180+1"]
[EndTime "14:38:45 PST"]
[Termination "mishanick won by resignation"]

1. e4 {[%clk 0:03:00.9]} 1... c5 {[%clk 0:03:00.5]} 2. Nf3 {[%clk 0:03:01.5]}
2... e6 {[%clk 0:03:01.2]} 3. c3 {[%clk 0:03:01.6]} 3... d5 {[%clk 0:03:01.8]}
4. exd5 {[%clk 0:03:02.1]} 4... Qxd5 {[%clk 0:03:02.1]} 5. d4 {[%clk 0:03:02.4]}
5... Nf6 {[%clk 0:03:02.3]} 6. Na3 {[%clk 0:03:01.8]} 6... Nc6 {[%clk
0:03:02.8]} 7. Nb5 {[%clk 0:02:49.4]} 7... Qd8 {[%clk 0:03:02.4]} 8. dxc5 {[%clk
0:02:45.8]} 8... Bxc5 {[%clk 0:03:03.3]} 9. Qxd8+ {[%clk 0:02:31.6]} 9... Kxd8
{[%clk 0:03:04.2]} 10. b4 {[%clk 0:02:23]} 10... Bb6 {[%clk 0:03:02.9]} 11. Nd6
{[%clk 0:02:15.4]} 11... Ke7 {[%clk 0:02:27.3]} 12. Nc4 {[%clk 0:02:15.6]} 12...
Ne4 {[%clk 0:02:25.4]} 13. Nxb6 {[%clk 0:02:13.2]} 13... axb6 {[%clk 0:02:25.4]}
14. Bb2 {[%clk 0:02:11.8]} 14... Rd8 {[%clk 0:02:18.2]} 15. a3 {[%clk
0:01:38.7]} 15... f6 {[%clk 0:02:16.4]} 16. Be2 {[%clk 0:00:56.1]} 16... e5
{[%clk 0:02:15.8]} 17. O-O {[%clk 0:00:56.6]} 17... Be6 {[%clk 0:01:58.1]} 18.
Rfe1 {[%clk 0:00:52.2]} 18... Nd2 {[%clk 0:01:44.1]} 19. Nxd2 {[%clk 0:00:50.5]}
19... Rxd2 {[%clk 0:01:45]} 20. Bc1 {[%clk 0:00:51.1]} 20... Rc2 {[%clk
0:01:45.2]} 21. Be3 {[%clk 0:00:45.9]} 21... Rxc3 {[%clk 0:01:44.9]} 22. Bxb6
{[%clk 0:00:44.9]} 22... Kf7 {[%clk 0:00:55.4]} 23. f4 {[%clk 0:00:19.4]} 23...
exf4 {[%clk 0:00:40.4]} 24. Bh5+ {[%clk 0:00:11]} 24... g6 {[%clk 0:00:39.8]}
25. Bf3 {[%clk 0:00:11.7]} 25... Raxa3 {[%clk 0:00:31]} 26. Rxa3 {[%clk
0:00:09.3]} 26... Rxa3 {[%clk 0:00:31.9]} 27. b5 {[%clk 0:00:09.5]} 27... Ne5
{[%clk 0:00:32.5]} 28. Bxb7 {[%clk 0:00:08.5]} 28... Rb3 {[%clk 0:00:33.2]} 29.
Ba6 {[%clk 0:00:03]} 29... Bc4 {[%clk 0:00:33.2]} 30. Bc7 {[%clk 0:00:02.2]}
30... Bxb5 {[%clk 0:00:29.8]} 31. Bb7 {[%clk 0:00:02.9]} 31... Bc4 {[%clk
0:00:24.3]} 32. Ba8 {[%clk 0:00:03.3]} 32... Nd3 {[%clk 0:00:20.6]} 33. Rd1
{[%clk 0:00:03]} 33... g5 {[%clk 0:00:19.9]} 34. Be4 {[%clk 0:00:02.9]} 34... h6
{[%clk 0:00:20.2]} 35. h3 {[%clk 0:00:02.5]} 35... Rc3 {[%clk 0:00:17.4]} 36.
Ra1 {[%clk 0:00:02.9]} 36... Ke6 {[%clk 0:00:15.9]} 37. Bf3 {[%clk 0:00:03.3]}
37... Ne5 {[%clk 0:00:15.6]} 38. Bb7 {[%clk 0:00:03.7]} 38... Bd5 {[%clk
0:00:10.3]} 39. Ba5 {[%clk 0:00:03]} 39... Rc2 {[%clk 0:00:09.5]} 40. Bxd5+
{[%clk 0:00:02.4]} 40... Kxd5 {[%clk 0:00:10.4]} 41. Rd1+ {[%clk 0:00:02.6]}
41... Ke6 {[%clk 0:00:10.7]} 42. Bc7 {[%clk 0:00:03]} 42... f3 {[%clk
0:00:10.6]} 43. Bxe5 {[%clk 0:00:02.8]} 43... Rxg2+ {[%clk 0:00:10.1]} 44. Kh1
{[%clk 0:00:03.3]} 44... fxe5 {[%clk 0:00:11]} 45. h4 {[%clk 0:00:03.7]} 45...
Rg4 {[%clk 0:00:11]} 46. hxg5 {[%clk 0:00:03.8]} 46... hxg5 {[%clk 0:00:11.9]}
47. Kh2 {[%clk 0:00:03.8]} 47... e4 {[%clk 0:00:12.5]} 48. Kh3 {[%clk
0:00:04.5]} 48... Rf4 {[%clk 0:00:10.7]} 49. Kg3 {[%clk 0:00:04.8]} 49... f2
{[%clk 0:00:11.3]} 50. Kg2 {[%clk 0:00:04.5]} 50... e3 {[%clk 0:00:11.7]} 51.
Kf1 {[%clk 0:00:05]} 51... g4 {[%clk 0:00:10.7]} 52. Ra1 {[%clk 0:00:03.9]}
52... g3 {[%clk 0:00:11.1]} 53. Ra6+ {[%clk 0:00:02]} 53... Kf5 {[%clk 0:00:11]}
54. Ra5+ {[%clk 0:00:02.8]} 54... Kg4 {[%clk 0:00:11.5]} 55. Ra1 {[%clk
0:00:02.2]} 55... Kf3 {[%clk 0:00:11]} 0-1

[Event "Late-Titled-Tuesday-Blitz-January-23-2024"]
[Site "Chess.com"]
[Date "2024.01.23"]
[Round "4"]
[White "Oleksandr_Bortnyk"]
[Black "Dedic8"]
[Result "1/2-1/2"]
[WhiteElo "3064"]
[BlackElo "2805"]
[TimeControl "180+1"]
[EndTime "14:38:45 PST"]
[Termination "Game drawn by repetition"]

1. e4 {[%clk 0:03:00.9]} 1... e5 {[%clk 0:02:59.9]} 2. Nf3 {[%clk 0:02:59.8]}
2... Nc6 {[%clk 0:03:00.5]} 3. Bc4 {[%clk 0:02:58.5]} 3... Nf6 {[%clk
0:03:00.9]} 4. Ng5 {[%clk 0:02:58.9]} 4... d5 {[%clk 0:03:00.7]} 5. exd5 {[%clk
0:02:59.8]} 5... Na5 {[%clk 0:03:01.4]} 6. Bb5+ {[%clk 0:03:00.5]} 6... c6
{[%clk 0:03:02]} 7. dxc6 {[%clk 0:03:01.4]} 7... bxc6 {[%clk 0:03:02.9]} 8. Bd3
{[%clk 0:03:01.8]} 8... Nd5 {[%clk 0:03:02]} 9. h4 {[%clk 0:03:02.4]} 9... h6
{[%clk 0:02:58.7]} 10. Qh5 {[%clk 0:03:02.2]} 10... Qf6 {[%clk 0:02:59]} 11. g3
{[%clk 0:02:52.9]} 11... g6 {[%clk 0:02:49.4]} 12. Qf3 {[%clk 0:02:51.8]} 12...
Qe7 {[%clk 0:02:44.9]} 13. Nh3 {[%clk 0:02:33]} 13... f5 {[%clk 0:02:44.3]} 14.
Qg2 {[%clk 0:02:29.6]} 14... Nb4 {[%clk 0:02:32]} 15. O-O {[%clk 0:02:22.3]}
15... e4 {[%clk 0:02:29.2]} 16. Re1 {[%clk 0:02:21.9]} 16... Be6 {[%clk
0:02:16.2]} 17. Nf4 {[%clk 0:02:17]} 17... Bf7 {[%clk 0:01:31.1]} 18. Bxe4
{[%clk 0:02:11.5]} 18... Kd8 {[%clk 0:01:31.6]} 19. Na3 {[%clk 0:01:46.1]} 19...
g5 {[%clk 0:01:21.1]} 20. c3 {[%clk 0:01:42.7]} 20... gxf4 {[%clk 0:01:07.2]}
21. cxb4 {[%clk 0:01:42.4]} 21... fxe4 {[%clk 0:01:08]} 22. Rxe4 {[%clk
0:01:35.7]} 22... Qd7 {[%clk 0:00:53.7]} 23. bxa5 {[%clk 0:01:30.6]} 23... fxg3
{[%clk 0:00:49.1]} 24. fxg3 {[%clk 0:01:13]} 24... Bd5 {[%clk 0:00:49.2]} 25.
Kh2 {[%clk 0:01:04.5]} 25... Bd6 {[%clk 0:00:34.8]} 26. Nc4 {[%clk 0:00:56.4]}
26... Bxe4 {[%clk 0:00:16.3]} 27. Qxe4 {[%clk 0:00:56]} 27... Rg8 {[%clk
0:00:16]} 28. Nxd6 {[%clk 0:00:42.7]} 28... Qxd6 {[%clk 0:00:16.9]} 29. Qf3
{[%clk 0:00:43.1]} 29... Rf8 {[%clk 0:00:14]} 30. Qe3 {[%clk 0:00:36]} 30... Re8
{[%clk 0:00:12.8]} 31. Qf3 {[%clk 0:00:24]} 31... Rf8 {[%clk 0:00:12.9]} 32. Qg2
{[%clk 0:00:24.4]} 32... Qd3 {[%clk 0:00:11.9]} 33. b3 {[%clk 0:00:20.7]} 33...
Re8 {[%clk 0:00:10.8]} 34. Qxc6 {[%clk 0:00:11.6]} 34... Re2+ {[%clk 0:00:07.7]}
35. Kh1 {[%clk 0:00:09.9]} 35... Rc8 {[%clk 0:00:06.4]} 36. Qf6+ {[%clk
0:00:09.3]} 36... Ke8 {[%clk 0:00:06.6]} 37. Qh8+ {[%clk 0:00:07.5]} 37... Kd7
{[%clk 0:00:06]} 38. Qg7+ {[%clk 0:00:08.1]} 38... Kc6 {[%clk 0:00:06]} 39. Qc3+
{[%clk 0:00:04.5]} 39... Qxc3 {[%clk 0:00:04.7]} 40. dxc3 {[%clk 0:00:05.4]}
40... Rd8 {[%clk 0:00:03.7]} 41. Bxh6 {[%clk 0:00:04.2]} 41... Rd3 {[%clk
0:00:03.7]} 42. Bf4 {[%clk 0:00:04.3]} 42... Rxc3 {[%clk 0:00:04.1]} 43. h5
{[%clk 0:00:02.1]} 43... Rc5 {[%clk 0:00:01.8]} 44. h6 {[%clk 0:00:02]} 44...
Rh5+ {[%clk 0:00:02.1]} 45. Kg1 {[%clk 0:00:02.7]} 45... Rhh2 {[%clk 0:00:02.4]}
46. Rc1+ {[%clk 0:00:02.5]} 46... Kd5 {[%clk 0:00:02.4]} 47. Rd1+ {[%clk
0:00:01.6]} 47... Ke4 {[%clk 0:00:02.9]} 48. Rc1 {[%clk 0:00:01.7]} 48... Kf3
{[%clk 0:00:03.3]} 49. Rc3+ {[%clk 0:00:01.5]} 49... Kg4 {[%clk 0:00:04]} 50.
Re3 {[%clk 0:00:02.1]} 50... Reg2+ {[%clk 0:00:04.2]} 51. Kf1 {[%clk 0:00:02.8]}
51... Rxa2 {[%clk 0:00:03.9]} 52. Kg1 {[%clk 0:00:02.8]} 52... Rag2+ {[%clk
0:00:03.7]} 53. Kf1 {[%clk 0:00:03.4]} 53... Rb2 {[%clk 0:00:04.4]} 54. Kg1
{[%clk 0:00:03.1]} 54... Rbg2+ {[%clk 0:00:04.6]} 55. Kf1 {[%clk 0:00:03.7]}
55... Ra2 {[%clk 0:00:05.4]} 56. Kg1 {[%clk 0:00:04.3]} 56... Rag2+ {[%clk
0:00:04.8]} 1/2-1/2